Cogmind - Beta 10.2 @@@ ROGUE MODE // 2021.04.20 @ 04:23:23 Player: gammafunk Result: Self-destructed Performance ------------- Evolutions (3) 1500 Regions Visited (11) 2200 Robots Destroyed (184) 920 Value Destroyed (5811) 5811 Prototype IDs (24) 480 Alien Tech Used (0) 0 Bonus (296) 296 TOTAL SCORE: 11207 Bonus ------- High Alert Combat Kills 86 Follower Combat Kills 46 Met Data Miner 300 Friendly Fire -136 Cogmind --------- Core Integrity 262/700 Matter 300/300 Energy 3/100 System Corruption 0% Temperature Cool (0) Movement Treading (160) Location -7/Data Miner Parts ------- > --- POWER (1) -------- (None) > --- PROPULSION (3) --- Light Treads Heavy Treads > --- UTILITY (5) ------ Long-range Sensor Array Advanced Signal Interpreter Layered Light Armor Plating Bomb Drone Bay (8/16) > --- WEAPON (4) ------- Gauss Rifle Gauss Rifle Missile Launcher Chainsword > --- INVENTORY (4) ---- Improved Cooling System High-capacity Matter Pod (124) Gauss Rifle Flak Gun Peak State ------------ > --- POWER ------------ Antimatter Reactor > --- PROPULSION ------- Medium Treads Heavy Treads > --- UTILITY ---------- High-capacity Storage Unit High-capacity Storage Unit Experimental Sensor Array Advanced Signal Interpreter Improved System Restoration Module > --- WEAPON ----------- Gauss Rifle Gauss Rifle Flak Gun Flak Gun > --- INVENTORY -------- Heavy Treads Improved Cooling System High-capacity Storage Unit High-capacity Matter Pod Long-range Sensor Array Advanced Signal Interpreter Improved Medium Armor Plating Layered Light Armor Plating Damper Plating System Shield Bomb Drone Bay Minigun Shock Bomb Launcher Missile Launcher Chainsword [Rating: 65] Favorites ----------- Power Cooled Ion Engine Engine Cooled Ion Engine Reactor Antimatter Reactor Propulsion Light Treads Treads Light Treads Utility High-capacity Storage Unit Device Experimental Sensor Array Storage High-capacity Storage Unit Processor Advanced Signal Interpreter Hackware Hacking Suite Protection Hardened Light Armor Plating Weapon Gauss Rifle Energy Gun Medium Laser Ballistic Gun Gauss Rifle Launcher Rocket Launcher Impact Weapon Maul Slashing Weapon Chainsword Build | -11 -10 -10 -9 -9 -8 -7 -7 -7 -7 -7 -7 ------- Run | Scr Mat Min Mat Min Mat Fac Was Fac Low Low Dat Slots Evolved 6 | . . . 2 . 2 2 . . . . . Power . | . . . . . . . . . . . . Propulsion 1 | . . . . . 1 . . . . . . Utility 3 | . . . 1 . 1 1 . . . . . Weapon 2 | . . . 1 . . 1 . . . . . Parts Attached 209 | 7 11 13 39 3 32 44 2 38 3 13 4 Power 15 | 1 3 1 5 . 1 2 1 1 . . . Engine 14 | 1 3 1 5 . 1 2 . 1 . . . Core . | . . . . . . . . . . . . Reactor 1 | . . . . . . . 1 . . . . Propulsion 32 | 2 1 2 9 . 12 1 1 2 . 2 . Treads 32 | 2 1 2 9 . 12 1 1 2 . 2 . Leg . | . . . . . . . . . . . . Wheel . | . . . . . . . . . . . . Hover . | . . . . . . . . . . . . Flight . | . . . . . . . . . . . . Utility 73 | 2 4 2 6 3 8 24 . 16 1 5 2 Device 25 | . . . . 1 . 8 . 9 . 5 2 Storage 12 | 2 1 . 4 1 2 2 . . . . . Processor 6 | . 1 . . . 3 2 . . . . . Hackware 3 | . . . . . . 2 . 1 . . . Protection 27 | . 2 2 2 1 3 10 . 6 1 . . Artifact . | . . . . . . . . . . . . Weapon 89 | 2 3 8 19 . 11 17 . 19 2 6 2 Energy Gun 1 | 1 . . . . . . . . . . . Energy Cannon . | . . . . . . . . . . . . Ballistic Gun 68 | 1 2 5 19 . 9 14 . 12 1 5 . Ballistic Cannon . | . . . . . . . . . . . . Launcher 12 | . 1 3 . . 1 1 . 3 1 1 1 Special Weapon . | . . . . . . . . . . . . Impact Weapon 1 | . . . . . 1 . . . . . . Slashing Weapon 7 | . . . . . . 2 . 4 . . 1 Piercing Weapon . | . . . . . . . . . . . . Special Melee Weapon . | . . . . . . . . . . . . Unidentified Prototypes 5 | . . . 3 1 . . . 1 . . . Parts Lost 10 | . . 3 2 . 1 . . . . 4 . Power 2 | . . . 2 . . . . . . . . Propulsion 1 | . . 1 . . . . . . . . . Utility 1 | . . 1 . . . . . . . . . Weapon 6 | . . 1 . . 1 . . . . 4 . Highest Loss Streak 3 | . . 2 1 . 1 . . . . 3 . Average Slot Usage (%) 96 | . 99 97 99 99 97 99 93 91 92 91 85 Engine 8 | . 14 14 10 11 9 7 1 . 7 7 6 Reactor 1 | . . . . . . . 5 6 . . . Treads 21 | . 28 26 22 22 27 23 16 15 15 15 15 Device 3 | . . . . . . 3 7 12 15 7 12 Storage 16 | . 22 14 22 21 18 15 15 15 15 15 3 Processor 4 | . 1 . . . 6 4 15 7 7 7 7 Hackware 1 | . . . . . . 9 . . . . . Protection 6 | . 3 12 11 10 9 4 . 1 . 7 7 Ballistic Gun 26 | . 15 15 33 33 26 28 30 27 22 29 18 Launcher 1 | . . 12 . . . . . . . . 5 Naked Turns . | . . . . . . . . . . . . Heaviest Build 110 | 17 31 31 70 70 89 95 97 110 101 99 98 Greatest Support 98 | 40 40 40 43 43 69 68 98 98 92 92 90 Greatest Overweight (x) 4 | 2 1 1 1 1 1 1 1 1 1 4 1 Average Overweight (x) . | . . . 1 1 1 1 . . 1 1 . Largest Inventory Capacity 20 | 8 12 10 20 18 20 20 20 20 20 20 20 Average Capacity 17 | 6 11 10 17 17 20 20 20 20 20 20 7 Most Carried 20 | 2 12 10 18 18 20 20 20 20 20 20 17 Average Carried 16 | 1 10 9 16 17 19 19 19 19 20 16 6 Final Capacity 20 | 8 10 10 18 18 20 20 20 20 20 20 4 Final Carried 20 | 2 10 10 18 18 19 19 20 20 20 17 4 Class Distribution -------------------- 21% | Hauler-Skirmisher 16% | Mutant 11% | Hauler-Tank 11% | Hauler-Gunner 10% | Scavenger-Tank 8% | Tank 8% | Hauler-Mutant 6% | Hacker-Tank Dominant Class ---------------- Mutant | -10/Materials Mutant | -10/Mines Scavenger-Tank | -9/Materials Tank | -9/Mines Hauler-Gunner | -8/Materials Hacker-Tank | -7/Factory Hauler-Skirmisher | -7/Waste Hauler-Skirmisher | -7/Factory Hauler-Skirmisher | -7/Lower Caves Hauler-Skirmisher | -7/Lower Caves Mutant | -7/Data Miner Resources | -11 -10 -10 -9 -9 -8 -7 -7 -7 -7 -7 -7 ----------- Run | Scr Mat Min Mat Min Mat Fac Was Fac Low Low Dat Matter Collected 7522 | 274 173 502 1027 47 1333 1262 529 1409 211 639 116 Remotely . | . . . . . . . . . . . . Salvage Created 8573 | 101 430 254 1389 105 1363 1530 1123 1214 . 1044 20 Parts 449 | 6 30 7 106 6 73 90 20 70 . 37 4 Haulers Intercepted 9 | . 1 . 6 . 1 . . 1 . . . Recyclers Shooed 11 | 1 1 . 3 . 1 2 . 3 . . . Parts Field Recycled . | . . . . . . . . . . . . Retrieved Matter . | . . . . . . . . . . . . Parts Self-Destructed 35 | . . . . . . . . . 1 34 . Prevented 6 | . . . . . . . . . . 6 . Kills | -11 -10 -10 -9 -9 -8 -7 -7 -7 -7 -7 -7 ------- Run | Scr Mat Min Mat Min Mat Fac Was Fac Low Low Dat Combat Hostiles Destroyed 151 | . 9 14 27 4 29 27 4 20 . 17 . Guns 135 | . 9 5 27 4 29 27 4 14 . 16 . AOE 16 | . . 9 . . . . . 6 . 1 . Classes Destroyed 18 | 2 4 1 3 . 4 1 1 1 . 1 . Worker 4 | . . . . . 1 1 . 2 . . . Builder 3 | . . . 1 . . 1 . 1 . . . Tunneler 4 | 1 . 2 . . . . . 1 . . . Hauler 9 | . 1 . 6 . 1 . . 1 . . . Recycler 8 | 1 . 1 . . . 3 . 3 . . . Mechanic 1 | . . . . . . . . 1 . . . Operator 3 | . . . 1 . 1 . . 1 . . . Watcher 11 | . 3 . 3 . 3 2 . . . . . Swarmer 38 | . 3 . 11 4 8 8 . 4 . . . Grunt 50 | . 6 2 9 . 8 7 . 10 . 8 . Brawler 6 | . . . . . 1 . . . . 5 . Duelist 5 | . . . . . 2 1 . 1 . 1 . Protector 1 | . . . . . . . . . . 1 . Sentry 23 | . . . 8 . 9 5 . . . 1 . Hunter 5 | . . . . . 1 2 . 2 . . . Programmer 8 | . . . . . . 4 . 3 . 1 . Compactor 4 | . . . . . . . 4 . . . . Assembled 12 | . . 12 . . . . . . . . . Best Kill Streak 15 | 2 2 3 6 4 4 3 1 12 . 15 1 Combat Bots Only 15 | . 2 3 6 4 4 3 1 8 . 15 . Max Kills in Single Turn 3 | 1 1 3 2 2 2 2 1 3 . 2 1 Gunslinging 1 | . . . 1 1 . . . 1 . 1 . Exploded 2 | . . 2 . . . . . 2 . 1 . Melee . | . . . . . . . . . . . . Uniques/NPCs Destroyed 1 | . . . . . . . . . . . 1 Data Miner (-7/Data Miner) Combat | -11 -10 -10 -9 -9 -8 -7 -7 -7 -7 -7 -7 -------- Run | Scr Mat Min Mat Min Mat Fac Was Fac Low Low Dat Damage Taken 6970 | . 234 602 1301 50 1086 1149 . 1314 . 1234 . Core 923 | . 55 151 196 . 83 104 . 207 . 127 . Absorbed by Shields . | . . . . . . . . . . . . Core Remaining (%) 63 | 100 . 17 . 51 84 . . . . . . Volleys Fired 418 | 3 33 50 94 4 77 57 16 51 . 33 . Largest 4 | 2 2 2 3 3 3 4 4 4 . 4 . Hottest 112 | 70 70 40 73 71 75 106 112 112 . 112 . Shots Fired 1217 | 6 66 75 282 12 219 223 60 150 1 123 . Gun 1176 | 6 66 58 282 12 213 222 60 136 1 120 . Cannon . | . . . . . . . . . . . . Launcher 41 | . . 17 . . 6 1 . 14 . 3 . Special . | . . . . . . . . . . . . Kinetic 1140 | 3 33 58 282 12 213 222 60 136 1 120 . Thermal 36 | 3 33 . . . . . . . . . . Explosive 35 | . . 17 . . 6 1 . 11 . . . Electromagnetic 6 | . . . . . . . . 3 . 3 . Robot Hit Streak 20 | 5 11 9 16 5 16 20 12 18 . 13 . Robot Miss Streak 6 | . 2 4 4 2 3 4 4 6 . 4 . Penetration Max 1 | . . . . . . 1 . 1 . 1 . Secondary Targets 26 | . 2 . 5 3 5 2 . 1 . 8 . Max Gunslinging Chain 2 | . 1 . 1 2 1 1 . 1 . 1 . Shots Hit Robots 811 | 5 44 40 173 8 147 153 49 92 . 99 1 Core Hits 413 | 3 23 27 66 5 62 63 34 70 . 59 1 Critical Hits 14 | . 1 . 3 . 4 2 . 2 . 2 . Critical Kills 7 | . 1 . 2 . 1 1 . 2 . . . Critical Parts Destroyed 7 | . . . 1 . 3 1 . . . 2 . Melee Attacks 30 | . . . . . 6 10 . 13 . . 1 Impact 6 | . . . . . 6 . . . . . . Slashing 24 | . . . . . . 10 . 13 . . 1 Piercing . | . . . . . . . . . . . . Sneak Attacks 4 | . . . . . . 1 . 2 . . 1 Combat Hostiles . | . . . . . . . . . . . . Follow-up Attacks . | . . . . . . . . . . . . Damage Inflicted 16395 | 67 568 990 2210 130 2434 3226 1226 3117 . 2304 123 Guns 13568 | 64 555 326 2061 128 2319 2883 1226 1950 . 2056 . Cannons . | . . . . . . . . . . . . Explosions 1790 | . . 641 . . 51 . . 850 . 248 . Melee 505 | . . . . . . 135 . 247 . . 123 Ramming 532 | 3 13 23 149 2 64 208 . 70 . . . Kinetic 13199 | 26 224 326 2061 128 2319 2883 1226 1950 . 2056 . Thermal 382 | 38 331 . . . . . . 13 . . . Explosive 1291 | . . 641 . . 51 . . 599 . . . Electromagnetic 486 | . . . . . . . . 238 . 248 . Impact . | . . . . . . . . . . . . Slashing 505 | . . . . . . 135 . 247 . . 123 Piercing . | . . . . . . . . . . . . Highest Corruption 40 | . . 5 . . . 2 40 40 6 2 . Average Corruption 12 | . . 5 . . . 1 20 23 4 1 . Corruption Purged 41 | . . . . . . . . 34 4 3 . Effects 281 | . . 16 . . . 21 32 202 7 3 . Message Errors 38 | . . 1 . . . 6 5 25 . 1 . Matter Fused 43 | . . 9 . . . . 5 28 1 . . Heat Flow Errors 22 | . . 1 . . . 3 2 14 2 . . Energy Discharges 26 | . . 1 . . . 6 . 19 . . . Parts Rejected 3 | . . . . . . . . 3 . . . Data Loss (minor) 26 | . . 2 . . . 3 5 13 2 1 . Data Loss (major) 11 | . . . . . . . . 10 1 . . Misfires 9 | . . . . . . . . 8 1 . . Alerts 2 | . . . . . . . . 2 . . . Misdirections 38 | . . . . . . . 5 33 . . . Targeting Errors 50 | . . 1 . . . 2 6 40 . 1 . Weapon Failures 13 | . . 1 . . . 1 4 7 . . . Overload Shots . | . . . . . . . . . . . . Overflow Damage 287 | . . 29 5 . . 75 . 178 . . . Projectiles . | . . . . . . . . . . . . Explosions 42 | . . 29 . . . . . 13 . . . Melee 245 | . . . 5 . . 75 . 165 . . . Knockbacks 4 | . . 1 1 . 1 1 . . . . . Impact 4 | . . 1 1 . 1 1 . . . . . Kinetic . | . . . . . . . . . . . . Secondary . | . . . . . . . . . . . . Self-Inflicted Damage 52 | . . 52 . . . . . . . . . Shots 3 | . . 3 . . . . . . . . . Rammed 52 | 1 3 3 17 1 8 13 . 6 . . . Targets Rammed 57 | 1 3 5 17 1 9 15 . 6 . . . Kicked . | . . . . . . . . . . . . Crushed 5 | . . 2 . . 1 2 . . . . . Highest Temperature 316 | 27 198 92 224 18 153 211 243 272 208 316 . Average Temperature 60 | 14 53 25 49 8 28 63 74 83 102 152 . Received Heat Transfer 2034 | . 108 129 354 . 387 237 . 333 . 486 . Effects 5 | . . . . . . 2 . 2 . 1 . Energy Bleed 3 | . . . . . . . . 2 . 1 . Interference 2 | . . . . . . 2 . . . . . Siege Activations . | . . . . . . . . . . . . Robots Corrupted . | . . . . . . . . . . . . Combat Hostiles . | . . . . . . . . . . . . Parts Fried 2 | . . . . . . 2 . . . . . Impact Corruptions 5 | . . . 2 . . 2 . 1 . . . Robots Melted . | . . . . . . . . . . . . Combat Hostiles . | . . . . . . . . . . . . Parts Melted 2 | . 2 . . . . . . . . . . Heat Transferred 1123 | 111 962 . . . . . . 50 . . . Parts Sabotaged . | . . . . . . . . . . . . Parts Stolen . | . . . . . . . . . . . . Parts Stripped . | . . . . . . . . . . . . Power Chain Reactions 1 | . . . . . . . . 1 . . . Missiles Intercepted . | . . . . . . . . . . . . Alert | -11 -10 -10 -9 -9 -8 -7 -7 -7 -7 -7 -7 ------- Run | Scr Mat Min Mat Min Mat Fac Was Fac Low Low Dat Peak Influence 606 | 10 200 67 429 166 415 606 207 523 . . . Initial 207 | . 6 2 . 71 . 97 207 4 . . . Average 154 | 2 32 16 177 56 189 196 183 212 . . . Maximum Alert Level 2 | . 1 . 2 . 2 2 1 2 . . . Low Security (%) 72 | 100 97 100 73 100 62 64 11 61 . . . Level 1 19 | . 2 . 26 . 35 22 88 4 . . . Level 2 8 | . . . . . 1 12 . 33 . . . Level 3 . | . . . . . . . . . . . . Level 4 . | . . . . . . . . . . . . Level 5 . | . . . . . . . . . . . . High Security . | . . . . . . . . . . . . Max Security . | . . . . . . . . . . . . Squads Dispatched 23 | . 1 . 2 . 3 9 . 7 . 1 . Investigation 3 | . . . 1 . 1 . . 1 . . . Extermination 9 | . . . . . . 5 . 4 . . . Reinforcement 8 | . 1 . 1 . 2 2 . 2 . . . Assault 1 | . . . . . . . . . . 1 . Garrison 2 | . . . . . . 2 . . . . . Intercept . | . . . . . . . . . . . . Construction Impeded 2 | . . . . . . . . 2 . . . Haulers Reinforced . | . . . . . . . . . . . . Stealth | -11 -10 -10 -9 -9 -8 -7 -7 -7 -7 -7 -7 --------- Run | Scr Mat Min Mat Min Mat Fac Was Fac Low Low Dat Distress Signals 9 | . . . 4 . 1 . . 4 . . . Communications Jammed . | . . . . . . . . . . . . Distress Signals . | . . . . . . . . . . . . Times Spotted 260 | . 23 15 59 2 55 45 4 34 . 23 . Peak Tracking Total 12 | . 3 2 7 2 5 5 2 4 . 12 . Tactical Retreats 25 | . 1 1 4 . 6 5 . 6 . 2 . Traps | -11 -10 -10 -9 -9 -8 -7 -7 -7 -7 -7 -7 ------- Run | Scr Mat Min Mat Min Mat Fac Was Fac Low Low Dat Traps Triggered 7 | . 1 . 2 . 1 1 . 2 . . . Indirectly . | . . . . . . . . . . . . Trap Hack Attempts . | . . . . . . . . . . . . Triggered . | . . . . . . . . . . . . Disarmed . | . . . . . . . . . . . . Reprogrammed . | . . . . . . . . . . . . Reused . | . . . . . . . . . . . . Traps Extracted . | . . . . . . . . . . . . Installed . | . . . . . . . . . . . . Triggered 3 | . . . . . . . . . . 3 . Machines | -11 -10 -10 -9 -9 -8 -7 -7 -7 -7 -7 -7 ---------- Run | Scr Mat Min Mat Min Mat Fac Was Fac Low Low Dat Machines Disabled 9 | . . . 1 . 1 2 . 5 . . . Max in Single Turn 3 | . . . 1 . 1 1 . 3 . . . Garrison Access 4 | . . . . . 1 2 . 1 . . . Machines Sabotaged . | . . . . . . . . . . . . Garrisons Compromised . | . . . . . . . . . . . . Overloaded Fab Kills . | . . . . . . . . . . . . Fab Network Shutdowns 1 | . . . . . . 1 . . . . . Hacking | -11 -10 -10 -9 -9 -8 -7 -7 -7 -7 -7 -7 --------- Run | Scr Mat Min Mat Min Mat Fac Was Fac Low Low Dat Machines Accessed 64 | . 8 . 9 1 15 19 . 8 . . 4 Terminals 44 | . 7 . 9 . 9 13 . 6 . . . Fabricators 2 | . . . . . . 2 . . . . . Repair Stations 5 | . 1 . . . 2 2 . . . . . Recycling Units 1 | . . . . . 1 . . . . . . Scanalyzers 2 | . . . . . 2 . . . . . . Garrison Access 5 | . . . . . 1 2 . 2 . . . Total Hacks 204 | . 30 . 36 1 44 49 . 18 . . 26 Successful 121 | . 17 . 23 1 25 26 . 3 . . 26 Failed 81 | . 13 . 12 . 18 23 . 15 . . . Catastrophic 11 | . 3 . 1 . 1 2 . 4 . . . Database Lockouts 2 | . . . 1 . 1 . . . . . . Manual 78 | . 21 . 15 . 12 25 . 5 . . . Terminals 140 | . 25 . 36 . 29 37 . 13 . . . Fabricators 6 | . . . . . . 6 . . . . . Repair Stations 15 | . 5 . . . 7 3 . . . . . Recycling Units 1 | . . . . . 1 . . . . . . Scanalyzers 5 | . . . . . 5 . . . . . . Garrison Access 10 | . . . . . 2 3 . 5 . . . Terminal Hacks 79 | . 9 . 18 1 11 13 . 1 . . 26 Record 11 | . . . . . . . . . . . 11 Part Schematic 8 | . 1 . . . . 2 . . . . 5 Robot Schematic 7 | . . . . . . . . . . . 7 Robot Analysis 7 | . 3 . . . 2 2 . . . . . Prototype ID Bank 8 | . . . 4 . 1 . . . . . 3 Open Door 1 | . . . . 1 . . . . . . . Branch Access Points 3 | . . . 1 . . 1 . 1 . . . Terminal Index 1 | . . . . . . 1 . . . . . Fabricator Index 1 | . . . . . . 1 . . . . . Alert Level 8 | . . . 6 . 2 . . . . . . Unreport Threat 8 | . 1 . 2 . 2 3 . . . . . Locate Traps 8 | . 1 . 2 . 3 2 . . . . . Surveillance Status 1 | . . . 1 . . . . . . . . Recall Investigation 1 | . 1 . . . . . . . . . . Recall Reinforcements 2 | . 1 . . . . 1 . . . . . Hauler Manifests 4 | . 1 . 2 . 1 . . . . . . Fabricator Hacks 4 | . . . . . . 4 . . . . . Load Schematic 1 | . . . . . . 1 . . . . . Build 3 | . . . . . . 3 . . . . . Repair Station Hacks 10 | . 4 . . . 4 2 . . . . . Scan Component 6 | . 2 . . . 3 1 . . . . . Repair 4 | . 2 . . . 1 1 . . . . . Recycling Unit Hacks 1 | . . . . . 1 . . . . . . Report Inventory 1 | . . . . . 1 . . . . . . Scanalyzer 5 | . . . . . 5 . . . . . . Insert Component 3 | . . . . . 3 . . . . . . Analyze 2 | . . . . . 2 . . . . . . Garrison Access Hacks 4 | . . . . . 1 2 . 1 . . . Seal Access 4 | . . . . . 1 2 . 1 . . . Unauthorized Hacks 18 | . 4 . 5 . 3 5 . 1 . . . Terminals 18 | . 4 . 5 . 3 5 . 1 . . . Assimilate 1 | . 1 . . . . . . . . . . Botnet 17 | . 3 . 5 . 3 5 . 1 . . . Fabricators . | . . . . . . . . . . . . Repair Stations . | . . . . . . . . . . . . Recycling Units . | . . . . . . . . . . . . Scanalyzers . | . . . . . . . . . . . . Garrison Access . | . . . . . . . . . . . . Data Cores Recovered 3 | . . . 1 . 1 . . 1 . . . Used 1 | . . . . . . . . 1 . . . Hacking Detections 55 | . 8 . 8 . 14 17 . 8 . . . Full Trace Events 1 | . 1 . . . . . . . . . . Feedback Events . | . . . . . . . . . . . . Feedback Blocked . | . . . . . . . . . . . . Robot Schematics Acquired 7 | . . . . . . . . . . . 7 Robots Built . | . . . . . . . . . . . . Matter . | . . . . . . . . . . . . Time . | . . . . . . . . . . . . Total Robot Build Rating . | . . . . . . . . . . . . Part Schematics Acquired 9 | . 1 . . . 1 2 . . . . 5 Parts Built 3 | . . . . . . 3 . . . . . Matter 438 | . . . . . . 438 . . . . . Time 219 | . . . . . . 219 . . . . . Total Part Build Rating 9 | . . . . . . 9 . . . . . Parts Repaired 4 | . 2 . . . 1 1 . . . . . Time 176 | . 52 . . . 80 44 . . . . . Parts Recycled . | . . . . . . . . . . . . Recycled Matter . | . . . . . . . . . . . . Retrieved Matter . | . . . . . . . . . . . . Retrieved Components . | . . . . . . . . . . . . Parts Scanalyzed 1 | . . . . . 1 . . . . . . Part Schematics Acquired 1 | . . . . . 1 . . . . . . Parts Damaged . | . . . . . . . . . . . . Bothacking | -11 -10 -10 -9 -9 -8 -7 -7 -7 -7 -7 -7 ------------ Run | Scr Mat Min Mat Min Mat Fac Was Fac Low Low Dat Used RIF Installer . | . . . . . . . . . . . . Robots Hacked . | . . . . . . . . . . . . Non-combat . | . . . . . . . . . . . . Combat . | . . . . . . . . . . . . Robot Hacks Applied . | . . . . . . . . . . . . Relay Couplers Released . | . . . . . . . . . . . . Robots Rewired 2 | . . . . . . . . . . 2 . Allies Hacked . | . . . . . . . . . . . . Hacks Repelled . | . . . . . . . . . . . . Allies | -11 -10 -10 -9 -9 -8 -7 -7 -7 -7 -7 -7 -------- Run | Scr Mat Min Mat Min Mat Fac Was Fac Low Low Dat Total Allies 6 | . 1 3 . . . . . . . 2 . Largest Group 4 | . 1 4 4 . . . . . . 2 2 Highest-Rated Group 50 | . 10 50 50 . . . . . . 46 46 Highest-Rated Ally 30 | . 10 16 16 . . . . . . 30 30 Total Orders 25 | . . 2 . . . . . . . 3 20 STAY 20 | . . 1 . . . . . . . 1 18 FOLLOW 3 | . . 1 . . . . . . . 2 . RETURN 2 | . . . . . . . . . . . 2 Ally Attacks 34 | . . . 27 . . . . . . . 7 Total Damage 218 | . . . 218 . . . . . . . . Kills 4 | . . . 4 . . . . . . . . Allies Corrupted . | . . . . . . . . . . . . Allies Melted . | . . . . . . . . . . . . Intel | -11 -10 -10 -9 -9 -8 -7 -7 -7 -7 -7 -7 ------- Run | Scr Mat Min Mat Min Mat Fac Was Fac Low Low Dat Robot Analysis Total 7 | . 3 . . . 2 2 . . . . . Derelict Logs Recovered 7 | . . 1 . 2 . . . . 2 2 . Drone Launches 24 | . . . . . . . . . . . 24 Drone Recoveries 16 | . . . . . . . . . . . 16 Exploration | -11 -10 -10 -9 -9 -8 -7 -7 -7 -7 -7 -7 ------------- Run | Scr Mat Min Mat Min Mat Fac Was Fac Low Low Dat Turns Passed 20210 | 113 1519 1532 2738 1153 3427 4020 452 2753 435 1116 952 Spaces Moved 9947 | 60 773 855 1276 619 1646 1822 212 1367 238 523 556 Core 8 | 8 . . . . . . . . . . . Treads 9939 | 52 773 855 1276 619 1646 1822 212 1367 238 523 556 Legs . | . . . . . . . . . . . . Wheels . | . . . . . . . . . . . . Hover . | . . . . . . . . . . . . Flight . | . . . . . . . . . . . . Fastest Speed 50 | 50 160 160 180 180 175 181 160 160 172 172 160 Average Speed 175 | 151 160 161 180 180 178 183 163 178 172 179 164 Slowest Speed 240 | 160 180 180 180 180 181 186 186 180 172 240 180 Overloaded Moves . | . . . . . . . . . . . . Propulsion Burnouts . | . . . . . . . . . . . . Robots Hopped . | . . . . . . . . . . . . Cave-ins Triggered 1 | . . . . . . . . 1 . . . Exploration Rate (%) 66 | 4 95 96 96 99 97 37 87 28 37 44 78 Regions Visited 11 Branch Regions 5 Pre-discovered Areas 2 | . . . . 1 . . . . . . 1 Known Exits Taken 5 | . . . 1 . 1 . . 1 1 1 . Unknown Exits Taken 4 | 1 1 1 . 1 . . . . . . . Scrap Searched 4 | . . 1 . 1 . . . . 1 1 . Spaces Dug 96 | . . 11 . . 30 8 . 47 . . . Terrain Destroyed 357 | . . 122 . . 68 15 1 151 . . . Melee 22 | . . . . . 4 8 . 10 . . . Projectile 8 | . . . . . . 2 1 5 . . . AOE 327 | . . 122 . . 64 5 . 136 . . . Terrain Rammed . | . . . . . . . . . . . . Walls Destroyed . | . . . . . . . . . . . . Machines Disabled . | . . . . . . . . . . . . Actions | -11 -10 -10 -9 -9 -8 -7 -7 -7 -7 -7 -7 --------- Run | Scr Mat Min Mat Min Mat Fac Was Fac Low Low Dat Total 11838 | 72 985 934 1537 651 1996 2359 282 1543 262 620 597 Wait 905 | . 151 . 52 8 169 382 41 44 22 17 19 Move 9936 | 59 772 854 1275 618 1645 1822 211 1365 237 522 556 Hop . | . . . . . . . . . . . . Pick Up 87 | 2 10 5 19 8 22 8 3 7 . . 3 Fast Attach 43 | 7 6 3 5 3 2 3 2 7 . 2 3 Attach 25 | . . 2 4 . 7 4 . 3 . 4 1 Detach 16 | . 1 . 1 . 2 3 1 2 . 2 4 Swap 141 | . 5 8 30 . 23 37 . 28 3 7 . Drop 142 | . 4 7 40 6 34 18 8 14 . 1 10 Fire 418 | 3 33 50 94 4 77 57 16 51 . 33 . Melee 30 | . . . . . 6 10 . 13 . . 1 Ram . | . . . . . . . . . . . . Kick . | . . . . . . . . . . . . Crush 57 | 1 3 5 17 1 9 15 . 6 . . . Escape Stasis 3 | . . . . . . . . 3 . . . Rewire 35 | . . . . 3 . . . . . 32 . Trap . | . . . . . . . . . . . . Miscellaneous . | . . . . . . . . . . . . Route ------- -11/Scrapyard -10/Materials (discovered 5 exits: *Mat x3 / [*Min x2]) -10/Mines (discovered 2 exits: *Mat x2) -9/Materials (discovered 5 exits: *Mat x3 / *Min x2) -9/Mines (discovered 3 exits: *Mat x2 / [*Exi]) -8/Materials (discovered 3 exits: *Fac x3) -7/Factory (discovered 4 exits: *Fac / Sto / Low x2) -7/Waste -7/Factory (discovered 5 exits: *Fac / Sto x2 / *Low x2) -7/Lower Caves -7/Lower Caves (discovered 2 exits: *Fac / *Dat) -7/Data Miner (discovered 1 exit: *Pro) History --------- Turn | Location | Event 6 | -11/Scrapyard | Discovered new exit (range 16) 114 | -11/Scrapyard | Entered Materials 233 | -10/Materials | Discovered new exit (range 10) 316 | -10/Materials | Build established: Mutant 609 | -10/Materials | Discovered new exit (range 7) 814 | -10/Materials | Discovered new exit (range 6) 1216 | -10/Materials | Discovered new exit (range 16) 1333 | -10/Materials | Discovered new exit (range 5) 1471 | -10/Materials | Repaired Lgt. Armor Plating 1498 | -10/Materials | Repaired Assault Rifle 1633 | -10/Materials | Entered Mines 1633 | -10/Mines | Accompanied by 1 ally 1661 | -10/Mines | Met a Derelict bent on vengeance 1704 | -10/Mines | Learned location of 1 exit from Materials 1840 | -10/Mines | Assembled infested the area 2547 | -10/Mines | Core integrity fell below 50% 2576 | -10/Mines | Found a hidden stash of uninstalled traps 2595 | -10/Mines | Discovered new exit (range 15) 2603 | -10/Mines | Core integrity fell below 20% 2710 | -10/Mines | Assisted by bots powering up and referring to "LRC-V3" 2937 | -10/Mines | Build established: Scavenger-Mutant 2955 | -10/Mines | Discovered new exit (range 4) 3165 | -10/Mines | Entered Materials 3165 | -9/Materials | Accompanied by 4 allies 3165 | -9/Materials | Evolved 2 slots: Utility x1, Weapon x1 3166 | -9/Materials | Identified exit to Mines 3763 | -9/Materials | Discovered new exit (range 8) 3821 | -9/Materials | Build established: Scavenger-Tank 4780 | -9/Materials | Discovered new exit (range 7) 5019 | -9/Materials | Central database locked down 5196 | -9/Materials | Discovered new exit (range 16) 5586 | -9/Materials | Build established: Tank 5903 | -9/Materials | Entered Mines 6203 | -9/Mines | Discovered new exit (range 9) 6251 | -9/Mines | Learned 4 Materials zone layouts 6336 | -9/Mines | Discovered new exit (range 13) 6370 | -9/Mines | Found the Drone Emporium 6387 | -9/Mines | Found Prototype Device 6387 | -9/Mines | Identified Bomb Drone Bay 6695 | -9/Mines | Deemed a non-threat by the Exiles lab entrance 6695 | -9/Mines | Discovered new exit (range 5) 6745 | -9/Mines | Learned location of Zion (-6) 6778 | -9/Mines | Found a damaged Exp. Sensor Array with a note attached 6782 | -9/Mines | Found Prototype Device 7056 | -9/Mines | Entered Materials 7056 | -8/Materials | Evolved 2 slots: Propulsion x1, Utility x1 7363 | -8/Materials | Build established: Hauler-Tank 7533 | -8/Materials | Central database locked down 7711 | -8/Materials | Discovered new exit (range 4) 8066 | -8/Materials | Identified Exp. Sensor Array 8281 | -8/Materials | Build established: Hauler-Gunner 8384 | -8/Materials | Discovered new exit (range 3) 9187 | -8/Materials | Discovered new exit (range 3) 10017 | -8/Materials | Repaired Exp. Sensor Array 10480 | -8/Materials | Identified exit to Factory 10483 | -8/Materials | Entered Factory 10483 | -7/Factory | Evolved 2 slots: Utility x1, Weapon x1 10934 | -7/Factory | Build established: Hacker-Tank 11330 | -7/Factory | Identified exit to Storage 11330 | -7/Factory | Identified exit to Lower Caves 11389 | -7/Factory | Garrison activated, responded to threat 11979 | -7/Factory | Discovered new exit (range 15) 12378 | -7/Factory | Build established: Hauler-Skirmisher 13030 | -7/Factory | Build established: Hauler-Tank 13534 | -7/Factory | Build established: Hauler-Skirmisher 13707 | -7/Factory | Fabricated Imp. System Restoration Module (x1) 13762 | -7/Factory | Fabricated Hcp. Storage Unit (x1) 13814 | -7/Factory | Fabricated Hcp. Storage Unit (x1) 13873 | -7/Factory | Build established: Hauler-Mutant 13993 | -7/Factory | Local fabrication network quarantined 14396 | -7/Factory | Repaired Gauss Rifle 14503 | -7/Factory | Sucked down chute 14503 | -7/Factory | Entered Waste 14518 | -7/Waste | EMP discharged 14553 | -7/Waste | Destroyed C-40 Crusher 14602 | -7/Waste | Found Damper Plating 14618 | -7/Waste | EMP discharged 14618 | -7/Waste | System corruption reached 10% 14631 | -7/Waste | Destroyed C-40 Crusher 14652 | -7/Waste | Destroyed C-40 Crusher 14718 | -7/Waste | EMP discharged 14755 | -7/Waste | Destroyed C-40 Crusher 14804 | -7/Waste | Build established: Hauler-Skirmisher 14818 | -7/Waste | EMP discharged 14818 | -7/Waste | System corruption reached 30% 14918 | -7/Waste | EMP discharged 14939 | -7/Waste | Discovered new exit (range 11) 14954 | -7/Waste | Identified exit to Factory 14955 | -7/Waste | Entered Factory 16696 | -7/Factory | Destroyed 8 combat bots 17022 | -7/Factory | Discovered new exit (range 14) 17044 | -7/Factory | Identified exit to Factory 17415 | -7/Factory | Crushed by falling debris 17563 | -7/Factory | Build established: Hauler-Mutant 17708 | -7/Factory | Entered Lower Caves 17721 | -7/Lower Caves | Learned Factory garrison access intel 17797 | -7/Lower Caves | Encountered a Warlord checkpoint 17848 | -7/Lower Caves | Learned location of 1 exit from Factory 17979 | -7/Lower Caves | Build established: Hauler-Skirmisher 18130 | -7/Lower Caves | Discovered new exit (range 2) 18130 | -7/Lower Caves | Identified exit to Lower Caves 18143 | -7/Lower Caves | Entered another Lower Caves area 18145 | -7/Lower Caves | Attracted the attention of an 0b10 outpost 18147 | -7/Lower Caves | Core integrity fell below 50% 18202 | -7/Lower Caves | Lost 3 parts (3w) 18275 | -7/Lower Caves | Discovered exit to Factory (range 15) 18287 | -7/Lower Caves | Destroyed 15 combat bots 18435 | -7/Lower Caves | Build established: Hauler-Tank 18786 | -7/Lower Caves | Learned Factory terminal intel 18811 | -7/Lower Caves | Build established: Hauler-Skirmisher 18950 | -7/Lower Caves | Learned Factory trap positions 19214 | -7/Lower Caves | Discovered new exit (range 10) 19230 | -7/Lower Caves | Identified exit to Data Miner 19259 | -7/Lower Caves | Entered Data Miner 19259 | -7/Data Miner | Accompanied by 2 allies 19259 | -7/Data Miner | Discovered new exit (range 6) 19294 | -7/Data Miner | Met Data Miner 19335 | -7/Data Miner | Learned location of Section 7 (-2) 19335 | -7/Data Miner | Acquired the access code to Warlord's prototype stash 19371 | -7/Data Miner | Received God Mode back door access code from Data Miner 19718 | -7/Data Miner | Identified exit to Proximity Caves 19804 | -7/Data Miner | Build established: Mutant 20092 | -7/Data Miner | Destroyed Data Miner 20093 | -7/Data Miner | Data Conduit disabled 20211 | -7/Data Miner | Self-destructed Last Messages --------------- Bomb Drone sneak attacks. Bomb Drone detonates. Bomb Drone destroyed. Fighter 4a destroyed. Bomb Drone detonates. Bomb Drone destroyed. Enhanced Grunt destroyed. The unstable cave ceiling collapses. Bomb Drone retrieved by Bomb Drone Bay. The unstable cave ceiling collapses. Bomb Drone retrieved by Bomb Drone Bay. The unstable cave ceiling collapses. Bomb Drone retrieved by Bomb Drone Bay. The unstable cave ceiling collapses. Bomb Drone retrieved by Bomb Drone Bay. Bomb Drone released from Bomb Drone Bay. Bomb Drone retrieved by Bomb Drone Bay. Dropped Hvy. Deuterium Engine. Acquired 20 matter. The unstable cave ceiling collapses. Map ----- +----------------------------------------------------+ | | | | | | | | | | | | | | | | | | | | | | | | | | | | | ?????????????????????????###########????????????? | | ??????????????????????#### # # ##???????????? | | ??????????????????????# # ###?????????? | | ??????????????????????# ## ### #?????????? | | ?????????????????????## # ### #### ###???????? | | ??????################ #### ## # #???????? | | ?????"""""""""""""""### # %# # #%### #???????? | | ????""""""""" """""" # # # % > ##???????? | | ????""""""""" ######??? | | ????"""""" #??? | | ???"""""""= #??? | | ???"""""" !! @ #??? | | ???"""""""* * ##??? | | ????"""""" """ """" """""""#####???? | | ????""""""" """"###############???????? | | ????""""""" """""###?????????????????????? | | ?????"""""""" "#####???????????????????????? | | ??????######"## "#???????????????????????????? | | ???????????#"### "#???????????????????????????? | | ???????????#"### "#???????????????????????????? | | ???????????#"## "#???????????????????????????? | | ?????????????## "#???????????????????????????? | | ?????????????# "#???????????????????????????? | | ?????????????### "#???????????????????????????? | | ???????????????# "##??????????????????????????? | | ??????????????## ""#??????????????????????????? | | ???????????#"## ""#??????????????????????????? | | ??????????##"#"X !""#??????????????????????????? | | ??????????""""" !! "####???????????????????????? | | ??????????""""" ! X"""""???????????????????????? | | ??????????##"#"X! "##"#???????????????????????? | | ???????????#?## !! X""""#???????????????????????? | | ??????????????##==! "##"#???????????????????????? | | ???????????????#######??????????????????????????? | | ????????????????????????????????????????????????? | | ????????????????????????????????????????????????? | +----------------------------------------------------+ Best States ------------- Heat Dissipation 61 Energy Generation 21 Energy Capacity 325 Matter Stores 300 Matter Capacity 300 Sight Range 16 Robot Scan Range 30 Terrain Scan Density 10 Armor Coverage 300 Evasion (%) 40 Targeting Accuracy 5 Target Analysis 5 Core Analysis 6 Armor Integrity Analysis 33 Recoil Reduction 3 Offensive Hacking 20 Defensive Hacking 10 Item Schematics ----------------- Hcp. Storage Unit | -10/Materials | Hacked Exp. Sensor Array | -8/Materials | Scanalyzed Adv. Signal Interpreter | -7/Factory | Hacked Lrn. Terrain Scanner | -7/Factory | Hacked Combat Drone Bay | -7/Data Miner | Free Lgt. Regenerative Plating | -7/Data Miner | Free Exp. Cesium-ion Thruster | -7/Data Miner | Free Mni. Smartbomb Launcher | -7/Data Miner | Free Kinetic Spear | -7/Data Miner | Free Robot Schematics ------------------ S-27 Virus | -7/Data Miner | Free G-50 Soldier | -7/Data Miner | Free G-67 Veteran | -7/Data Miner | Free X-72 Disruptor | -7/Data Miner | Free H-66 Slayer | -7/Data Miner | Free I-36 Angel | -7/Data Miner | Free I-47 Archangel | -7/Data Miner | Free Fabricated ------------ Imp. System Restoration Module | x1 | -7/Factory | Preloaded Hcp. Storage Unit | x1 | -7/Factory Hcp. Storage Unit | x1 | -7/Factory Alien Tech Used ----------------- None Achievements -------------- None Challenges ------------ None Game ------ Seed CooledStasisProtomatter Manual? 0 Play Time 02:32:05 Cumulative 187.9 hours Start 2021.04.19 @ 23:40:54 End 2021.04.20 @ 04:23:23 Sessions 4 Manual Loads 0 Difficulty Rogue Special Mode None Game No. 71 Rogue 71 Adventurer 0 Explorer 0 Win Type - Total 3 Types 1/1/1/0/0/0/0/0/0 Lore% 60 Gallery% 59 Achievement% 56 Wizard Run 0 Options --------- ASCII 0 Keyboard 1 Movement Vi Keybinds 0 Fullscreen 2 Font 12/Smallcaps Map View 60x54 Tactical HUD 0 Map Filters NONE Filters NONE Steam 1 RUN: 988e696a-a6ed-4c84-b1bb-6123fd0975e8